fUST/lending_fUST_20241227
["ID","MTS","AMOUNT","RATE_DAILY","PERIOD"]
[346764013,1735270270646,500.0,9.422e-05,2]
[346764014,1735270274604,500.0,9.422e-05,2]
[346764015,1735270275710,500.0,9.421e-05,2]
[346764016,1735270276013,500.0,9.422e-05,2]
[346764017,1735270277682,566.83,9.422e-05,2]
[346764018,1735270280824,788.47,9.422e-05,2]
[346764019,1735270282759,500.0,9.421e-05,2]
[346764020,1735270290121,500.0,9.422e-05,2]
[346764021,1735270291030,500.0,9.421e-05,2]
[346764022,1735270296665,500.0,9.422e-05,2]
[346764023,1735270299719,500.0,9.422e-05,2]
[346764024,1735270299902,500.0,9.422e-05,2]
[346764025,1735270300964,500.0,9.421e-05,2]
[346764026,1735270304560,500.0,9.422e-05,2]
[346764027,1735270306347,500.0,9.422e-05,2]
[346764028,1735270306457,500.0,9.421e-05,2]
[346764029,1735270307143,500.0,9.422e-05,2]
[346764030,1735270308403,500.0,9.422e-05,2]
[346764031,1735270309011,500.0,9.422e-05,2]
[346764032,1735270311629,500.0,9.421e-05,2]
[346764033,1735270312705,500.0,9.422e-05,2]
[346764034,1735270314086,500.0,9.421e-05,2]
[346764035,1735270322299,500.0,9.422e-05,2]
[346764036,1735270326175,500.0,9.422e-05,2]
[346764037,1735270326259,6264.68,9.421e-05,2]
[346764038,1735270326338,500.0,9.422e-05,2]
[346764039,1735270327599,500.0,9.421e-05,2]
[346764040,1735270328591,500.0,9.422e-05,2]
[346764041,1735270329800,500.0,9.422e-05,2]
[346764042,1735270330077,500.0,9.422e-05,2]
[346764043,1735270330331,500.0,9.424e-05,2]
[346764044,1735270330623,500.0,9.424e-05,2]
[346764045,1735270330771,500.0,9.422e-05,2]
[346764046,1735270330950,500.0,9.424e-05,2]
[346764047,1735270332959,660.08,9.422e-05,2]
[346764048,1735270333178,500.0,9.422e-05,2]
[346764049,1735270336030,259.58215074,8.708e-05,2]
[346764050,1735270336066,5646.92058476,8.708e-05,2]
[346764053,1735270492794,500.0,0.00020524,120]
[346764054,1735270559397,1991.6,0.00023,120]
[346764055,1735270616985,14084.78928195,8.49e-05,2]
[346764056,1735270617021,10815.21071805,8.49e-05,2]
[346764057,1735270821032,1060.9967208,8.489e-05,2]
[346764058,1735270928435,442.95,0.0001,30]
[346764059,1735270937362,300.0,8.98e-05,2]
[346764061,1735271069448,3832.462634,8.488e-05,2]
[346764062,1735271232119,-213.93989669,9.044e-05,2]
[346764063,1735271240245,-2605.32293229,9.044e-05,2]
[346764064,1735271240314,-1899.93500082,9.32e-05,2]
[346764065,1735271242180,2605.32293229,8.954e-05,2]
[346764066,1735271252123,-482.05459301,9.32e-05,2]
[346764067,1735271253864,764.975697,8.422e-05,2]
[346764068,1735271350320,-437.27323515,9.32e-05,2]
[346764069,1735271350382,-300.0,9.417e-05,2]
[346764070,1735271350442,-810.09823982,9.418e-05,2]
[346764071,1735271350502,-560.87,9.418e-05,2]
[346764072,1735271350560,-500.0,9.418e-05,2]
[346764073,1735271350615,-300.0,9.418e-05,2]
[346764074,1735271350674,-500.0,9.419e-05,2]
[346764075,1735271350734,-500.0,9.419e-05,2]
[346764076,1735271350789,-502.58138305,9.419e-05,2]
[346764077,1735271350843,-500.0,9.419e-05,2]
[346764078,1735271350900,-500.0,9.419e-05,2]
[346764079,1735271350957,-500.0,9.419e-05,2]
[346764080,1735271351012,-500.0,9.419e-05,2]
[346764081,1735271351062,-500.0,9.419e-05,2]
[346764082,1735271351116,-500.0,9.419e-05,2]
[346764083,1735271351167,-504.88930304,9.419e-05,2]
[346764084,1735271351220,-500.0,9.419e-05,2]
[346764085,1735271351274,-500.0,9.419e-05,2]
[346764086,1735271351329,-2270.94,9.419e-05,2]
[346764087,1735271351384,-694.92,9.419e-05,2]
[346764088,1735271351439,-500.0,9.419e-05,2]
[346764089,1735271351500,-500.0,9.419e-05,2]
[346764090,1735271351558,-500.0,9.419e-05,2]
[346764091,1735271351618,-432.02512579,9.419e-05,2]
[346764092,1735271351679,-500.0,9.419e-05,2]
[346764093,1735271351739,-200.0,9.419e-05,2]
[346764094,1735271351800,-242.21421552,9.419e-05,2]
[346764095,1735271351862,-500.0,9.419e-05,2]
[346764096,1735271351926,-500.0,9.419e-05,2]
[346764097,1735271351990,-500.0,9.419e-05,2]
[346764098,1735271352050,-500.0,9.419e-05,2]
[346764099,1735271352115,-500.0,9.419e-05,2]
[346764100,1735271352179,-500.0,9.419e-05,2]
[346764101,1735271352236,-500.0,9.419e-05,2]
[346764102,1735271352294,-500.0,9.419e-05,2]
[346764103,1735271352349,-349.25326498,9.419e-05,2]
[346764104,1735271352409,-598.69046416,9.419e-05,2]
[346764105,1735271352465,-761.91,9.419e-05,2]
[346764106,1735271352516,-500.0,9.419e-05,2]
[346764107,1735271352571,-500.0,9.419e-05,2]
[346764108,1735271352628,-500.0,9.419e-05,2]
[346764109,1735271352687,-500.0,9.419e-05,2]
[346764110,1735271352747,-500.0,9.419e-05,2]
[346764111,1735271352798,-500.0,9.419e-05,2]
[346764112,1735271352852,-500.0,9.419e-05,2]
[346764113,1735271352908,-522.3,9.419e-05,2]
[346764114,1735271352968,-500.0,9.419e-05,2]
[346764115,1735271353025,-500.0,9.419e-05,2]
[346764116,1735271353084,-500.0,9.419e-05,2]
[346764117,1735271353144,-500.0,9.419e-05,2]
[346764118,1735271353205,-153.98270125,9.419e-05,2]
[346764119,1735271353263,-500.0,9.419e-05,2]
[346764120,1735271353418,-500.0,9.419e-05,2]
[346764121,1735271353478,-500.0,9.419e-05,2]
[346764122,1735271353545,-500.0,9.419e-05,2]
[346764123,1735271353603,-500.0,9.419e-05,2]
[346764124,1735271353661,-500.0,9.419e-05,2]
[346764125,1735271353720,-500.0,9.419e-05,2]
[346764126,1735271353777,-500.0,9.419e-05,2]
[346764127,1735271353833,-500.0,9.419e-05,2]
[346764128,1735271353889,-500.0,9.419e-05,2]
[346764129,1735271353944,-500.0,9.419e-05,2]
[346764130,1735271354000,-500.0,9.419e-05,2]
[346764131,1735271354056,-500.0,9.419e-05,2]
[346764132,1735271354110,-500.0,9.419e-05,2]
[346764133,1735271354169,-6559.05,9.419e-05,2]
[346764134,1735271354225,-500.0,9.419e-05,2]
[346764135,1735271354281,-500.0,9.419e-05,2]
[346764136,1735271354340,-500.0,9.419e-05,2]
[346764137,1735271354397,-500.0,9.419e-05,2]
[346764138,1735271354455,-500.0,9.419e-05,2]
[346764139,1735271354518,-502.88727355,9.419e-05,2]
[346764140,1735271354586,-2653.8,9.419e-05,2]
[346764141,1735271354651,-500.0,9.419e-05,2]
[346764142,1735271354718,-500.0,9.419e-05,2]
[346764143,1735271354779,-500.0,9.419e-05,2]
[346764144,1735271354838,-500.0,9.419e-05,2]
[346764145,1735271354911,-500.0,9.42e-05,2]
[346764146,1735271354987,-500.0,9.42e-05,2]
[346764147,1735271355049,-500.0,9.42e-05,2]
[346764148,1735271355127,-500.0,9.42e-05,2]
[346764149,1735271355209,-500.0,9.42e-05,2]
[346764150,1735271355279,-500.0,9.42e-05,2]
[346764151,1735271355340,-500.0,9.42e-05,2]
[346764152,1735271355404,-500.0,9.42e-05,2]
[346764153,1735271355468,-518.69512104,9.42e-05,2]
[346764154,1735271355533,-340.56452917,9.42e-05,2]
[346764155,1735271355597,-500.0,9.42e-05,2]
[346764156,1735271355659,-154.46699974,9.42e-05,2]
[346764157,1735271355723,-641.74437014,9.42e-05,2]
[346764158,1735271355788,-500.0,9.42e-05,2]
[346764159,1735271355849,-500.0,9.42e-05,2]
[346764160,1735271355913,-500.0,9.42e-05,2]
[346764161,1735271355977,-500.0,9.42e-05,2]
[346764162,1735271356041,-500.0,9.42e-05,2]
[346764163,1735271356104,-508.95587899,9.42e-05,2]
[346764164,1735271356166,-500.0,9.42e-05,2]
[346764165,1735271356230,-500.0,9.42e-05,2]
[346764166,1735271356294,-500.64848158,9.42e-05,2]
[346764167,1735271356356,-608.2,9.42e-05,2]
[346764168,1735271356421,-500.0,9.42e-05,2]
[346764169,1735271356484,-505.19806812,9.42e-05,2]
[346764170,1735271356547,-500.0,9.42e-05,2]
[346764171,1735271356611,-500.0,9.42e-05,2]
[346764172,1735271356674,-587.86,9.42e-05,2]
[346764173,1735271356737,-241.11727438,9.42e-05,2]
[346764174,1735271356798,-500.0,9.42e-05,2]
[346764175,1735271356856,-500.0,9.42e-05,2]
[346764176,1735271356920,-500.0,9.42e-05,2]
[346764177,1735271356985,-500.0,9.42e-05,2]
[346764178,1735271357053,-1109.96,9.42e-05,2]
[346764179,1735271357118,-500.0,9.42e-05,2]
[346764180,1735271357177,-457.37963177,9.42e-05,2]
[346764181,1735271357237,-500.0,9.42e-05,2]
[346764182,1735271357293,-500.0,9.42e-05,2]
[346764183,1735271357349,-500.0,9.42e-05,2]
[346764184,1735271357405,-500.0,9.42e-05,2]
[346764185,1735271357460,-829.24,9.42e-05,2]
[346764186,1735271357515,-500.0,9.42e-05,2]
[346764187,1735271357572,-500.0,9.42e-05,2]
[346764188,1735271357628,-500.0,9.42e-05,2]
[346764189,1735271357685,-500.0,9.42e-05,2]
[346764190,1735271357741,-500.0,9.42e-05,2]
[346764191,1735271357801,-845.4,9.42e-05,2]
[346764192,1735271357862,-500.0,9.42e-05,2]
[346764193,1735271357923,-500.0,9.42e-05,2]
[346764194,1735271357984,-1244.02,9.42e-05,2]
[346764195,1735271358042,-500.0,9.42e-05,2]
[346764196,1735271358100,-500.0,9.42e-05,2]
[346764197,1735271358157,-500.0,9.42e-05,2]
[346764198,1735271358213,-500.0,9.42e-05,2]
[346764199,1735271358271,-500.0,9.42e-05,2]
[346764200,1735271358328,-500.0,9.42e-05,2]
[346764201,1735271358386,-500.0,9.42e-05,2]
[346764202,1735271358447,-500.0,9.42e-05,2]
[346764203,1735271358509,-500.0,9.42e-05,2]
[346764204,1735271358570,-677.37,9.42e-05,2]
[346764205,1735271358730,-588.98,9.42e-05,2]
[346764206,1735271358794,-500.0,9.42e-05,2]
[346764207,1735271358858,-500.0,9.42e-05,2]
[346764208,1735271358921,-1174.46,9.42e-05,2]
[346764209,1735271358977,-564.05,9.42e-05,2]
[346764210,1735271359038,-500.0,9.42e-05,2]
[346764211,1735271359098,-500.0,9.42e-05,2]
[346764212,1735271359162,-500.0,9.42e-05,2]
[346764213,1735271359223,-500.0,9.42e-05,2]
[346764214,1735271359285,-500.0,9.42e-05,2]
[346764215,1735271359349,-500.0,9.42e-05,2]
[346764216,1735271359415,-632.27,9.42e-05,2]
[346764217,1735271359482,-500.0,9.42e-05,2]
[346764218,1735271359546,-668.91,9.42e-05,2]
[346764219,1735271359612,-500.0,9.421e-05,2]
[346764220,1735271359682,-500.0,9.421e-05,2]
[346764221,1735271359754,-500.0,9.421e-05,2]
[346764222,1735271359820,-500.0,9.421e-05,2]
[346764223,1735271359885,-500.0,9.421e-05,2]
[346764224,1735271359951,-500.0,9.421e-05,2]
[346764225,1735271360014,-500.0,9.421e-05,2]
[346764226,1735271360077,-500.0,9.421e-05,2]
[346764227,1735271360146,-500.0,9.421e-05,2]
[346764228,1735271360212,-500.0,9.421e-05,2]
[346764229,1735271360275,-232.09905676,9.421e-05,2]
[346764230,1735271360334,-504.55477,9.421e-05,2]
[346764231,1735271360394,-500.0,9.421e-05,2]
[346764232,1735271360457,-500.0,9.421e-05,2]
[346764233,1735271360532,-500.0,9.421e-05,2]
[346764234,1735271360598,-500.0,9.421e-05,2]
[346764235,1735271360660,-500.0,9.421e-05,2]
[346764236,1735271360722,-501.68152722,9.421e-05,2]
[346764237,1735271360783,-500.0,9.421e-05,2]
[346764238,1735271360845,-286.57810716,9.421e-05,2]
[346764239,1735271360909,-284.97842242,9.421e-05,2]
[346764240,1735271367360,-215.02157758,9.421e-05,2]
[346764241,1735271367422,-500.0,9.421e-05,2]
[346764242,1735271367484,-502.72421608,9.421e-05,2]
[346764243,1735271367547,-500.0,9.421e-05,2]
[346764244,1735271367606,-500.0,9.421e-05,2]
[346764245,1735271367668,-500.0,9.421e-05,2]
[346764246,1735271367725,-500.0,9.421e-05,2]
[346764247,1735271367780,-245.89892837,9.421e-05,2]
[346764248,1735271367837,-500.0,9.421e-05,2]
[346764249,1735271367893,-500.0,9.421e-05,2]
[346764250,1735271367946,-287.82660811,9.421e-05,2]
[346764251,1735271368002,-501.17492052,9.421e-05,2]
[346764252,1735271368059,-503.14092869,9.421e-05,2]
[346764253,1735271368115,-500.0,9.421e-05,2]
[346764254,1735271368170,-550.6813367,9.421e-05,2]
[346764255,1735271368224,-500.0,9.421e-05,2]
[346764256,1735271368275,-500.0,9.421e-05,2]
[346764257,1735271368331,-596.52315479,9.421e-05,2]
[346764258,1735271368388,-500.0,9.421e-05,2]
[346764259,1735271368447,-500.0,9.421e-05,2]
[346764260,1735271368505,-500.0,9.421e-05,2]
[346764261,1735271368562,-500.0,9.421e-05,2]
[346764262,1735271368618,-500.0,9.421e-05,2]
[346764263,1735271368678,-500.0,9.421e-05,2]
[346764264,1735271368737,-500.0,9.421e-05,2]
[346764265,1735271368794,-500.0,9.421e-05,2]
[346764266,1735271368846,-500.0,9.421e-05,2]
[346764267,1735271368895,-500.0,9.421e-05,2]
[346764268,1735271368946,-500.0,9.421e-05,2]
[346764269,1735271368999,-500.0,9.421e-05,2]
[346764270,1735271369053,-500.0,9.421e-05,2]
[346764271,1735271369104,-500.0,9.421e-05,2]
[346764272,1735271369154,-500.0,9.421e-05,2]
[346764273,1735271369203,-500.0,9.421e-05,2]
[346764274,1735271369253,-500.0,9.421e-05,2]
[346764275,1735271369307,-500.0,9.421e-05,2]
[346764276,1735271369360,-500.0,9.421e-05,2]
[346764277,1735271369418,-500.0,9.421e-05,2]
[346764278,1735271369478,-500.0,9.421e-05,2]
[346764279,1735271369537,-500.0,9.421e-05,2]
[346764280,1735271369597,-500.0,9.421e-05,2]
[346764281,1735271369657,-500.0,9.421e-05,2]
[346764282,1735271369716,-500.0,9.421e-05,2]
[346764283,1735271369775,-500.0,9.421e-05,2]
[346764284,1735271369831,-500.0,9.421e-05,2]
[346764285,1735271369889,-500.0,9.421e-05,2]
[346764286,1735271369946,-500.0,9.421e-05,2]
[346764287,1735271370004,-500.0,9.421e-05,2]
[346764288,1735271370062,-500.0,9.421e-05,2]
[346764289,1735271370119,-500.0,9.421e-05,2]
[346764290,1735271370176,-500.0,9.421e-05,2]
[346764291,1735271370233,-500.0,9.421e-05,2]
[346764292,1735271370289,-500.0,9.421e-05,2]
[346764293,1735271370345,-500.0,9.421e-05,2]
[346764294,1735271370406,-500.0,9.421e-05,2]
[346764295,1735271370466,-500.0,9.421e-05,2]
[346764296,1735271370529,-500.0,9.421e-05,2]
[346764297,1735271370591,-500.0,9.421e-05,2]
[346764298,1735271370648,-500.0,9.421e-05,2]
[346764299,1735271370704,-500.0,9.421e-05,2]
[346764300,1735271370763,-500.0,9.421e-05,2]
[346764301,1735271370819,-500.0,9.421e-05,2]
[346764302,1735271370875,-507.55004044,9.421e-05,2]
[346764303,1735271370930,-500.0,9.421e-05,2]
[346764304,1735271370982,-500.0,9.421e-05,2]
[346764305,1735271371034,-500.0,9.421e-05,2]
[346764306,1735271371090,-500.0,9.421e-05,2]
[346764307,1735271371144,-500.0,9.421e-05,2]
[346764308,1735271371199,-500.0,9.421e-05,2]
[346764309,1735271371252,-500.0,9.421e-05,2]
[346764310,1735271371303,-500.0,9.421e-05,2]
[346764311,1735271371360,-500.0,9.421e-05,2]
[346764312,1735271371418,-500.0,9.421e-05,2]
[346764313,1735271371477,-500.0,9.421e-05,2]
[346764314,1735271371636,-500.0,9.421e-05,2]
[346764315,1735271371697,-500.0,9.421e-05,2]
[346764316,1735271371760,-500.0,9.421e-05,2]
[346764317,1735271371823,-500.0,9.421e-05,2]
[346764318,1735271371881,-500.0,9.421e-05,2]
[346764319,1735271371937,-500.0,9.421e-05,2]
[346764320,1735271371993,-500.0,9.421e-05,2]
[346764321,1735271372052,-500.0,9.421e-05,2]
[346764322,1735271372110,-500.0,9.421e-05,2]
[346764323,1735271372167,-617.85341707,9.421e-05,2]
[346764324,1735271372223,-500.0,9.421e-05,2]
[346764325,1735271372295,-500.0,9.421e-05,2]
[346764326,1735271372357,-500.0,9.421e-05,2]
[346764327,1735271372417,-500.0,9.421e-05,2]
[346764328,1735271372479,-500.0,9.421e-05,2]
[346764329,1735271372538,-500.0,9.421e-05,2]
[346764330,1735271372602,-500.0,9.421e-05,2]
[346764331,1735271372663,-500.0,9.421e-05,2]
[346764332,1735271372723,-223.92174954,9.421e-05,2]
[346764333,1735271372782,-500.0,9.421e-05,2]
[346764334,1735271372840,-504.41109643,9.421e-05,2]
[346764335,1735271372896,-500.0,9.421e-05,2]
[346764336,1735271372950,-500.0,9.421e-05,2]
[346764337,1735271373002,-500.0,9.421e-05,2]
[346764338,1735271373057,-500.0,9.421e-05,2]
[346764339,1735271373108,-500.0,9.421e-05,2]
[346764340,1735271373161,-502.28298167,9.421e-05,2]
[346764341,1735271373222,-500.0,9.421e-05,2]
[346764342,1735271373281,-500.0,9.421e-05,2]
[346764343,1735271373341,-500.0,9.421e-05,2]
[346764344,1735271373401,-500.0,9.421e-05,2]
[346764345,1735271373464,-500.0,9.421e-05,2]
[346764346,1735271373526,-500.0,9.421e-05,2]
[346764347,1735271373590,-500.0,9.421e-05,2]
[346764348,1735271373654,-500.0,9.421e-05,2]
[346764349,1735271373715,-3524.36,9.421e-05,2]
[346764350,1735271373781,-500.0,9.421e-05,2]
[346764351,1735271373845,-500.0,9.421e-05,2]
[346764352,1735271373904,-500.0,9.421e-05,2]
[346764353,1735271373963,-500.0,9.421e-05,2]
[346764354,1735271374022,-500.0,9.421e-05,2]
[346764355,1735271374075,-500.0,9.421e-05,2]
[346764356,1735271374133,-500.0,9.421e-05,2]
[346764357,1735271374192,-500.0,9.421e-05,2]
[346764358,1735271374249,-500.0,9.421e-05,2]
[346764359,1735271374309,-500.0,9.421e-05,2]
[346764360,1735271374370,-567.77,9.421e-05,2]
[346764361,1735271374437,-500.0,9.421e-05,2]
[346764362,1735271374499,-500.0,9.421e-05,2]
[346764363,1735271374561,-500.0,9.421e-05,2]
[346764364,1735271374620,-500.0,9.421e-05,2]
[346764365,1735271374679,-500.0,9.421e-05,2]
[346764366,1735271374734,-500.0,9.421e-05,2]
[346764367,1735271374792,-500.0,9.421e-05,2]
[346764368,1735271374847,-500.0,9.421e-05,2]
[346764369,1735271374905,-500.0,9.421e-05,2]
[346764370,1735271374962,-500.0,9.421e-05,2]
[346764371,1735271375017,-500.0,9.421e-05,2]
[346764372,1735271375072,-500.0,9.421e-05,2]
[346764373,1735271375128,-500.0,9.421e-05,2]
[346764374,1735271375185,-500.0,9.421e-05,2]
[346764375,1735271375239,-500.0,9.421e-05,2]
[346764376,1735271375292,-500.0,9.421e-05,2]
[346764377,1735271375349,-500.0,9.421e-05,2]
[346764378,1735271375408,-500.0,9.421e-05,2]
[346764379,1735271375469,-500.0,9.421e-05,2]
[346764380,1735271375525,-500.0,9.421e-05,2]
[346764381,1735271375581,-500.0,9.421e-05,2]
[346764382,1735271375636,-500.0,9.421e-05,2]
[346764383,1735271375693,-500.0,9.421e-05,2]
[346764384,1735271375751,-500.0,9.421e-05,2]
[346764385,1735271375812,-500.0,9.421e-05,2]
[346764386,1735271375871,-500.0,9.421e-05,2]
[346764387,1735271375925,-500.0,9.421e-05,2]
[346764388,1735271375984,-500.0,9.421e-05,2]
[346764389,1735271376043,-500.0,9.421e-05,2]
[346764390,1735271376176,-435.74971327,9.421e-05,2]
[346764391,1735271376240,-500.0,9.421e-05,2]
[346764392,1735271376299,-500.0,9.421e-05,2]
[346764393,1735271376358,-500.0,9.421e-05,2]
[346764394,1735271376416,-500.0,9.421e-05,2]
[346764395,1735271376476,-500.0,9.421e-05,2]
[346764396,1735271376536,-222.95877764,9.421e-05,2]
[346764397,1735271376946,-277.04122236,9.421e-05,2]
[346764398,1735271376975,-500.0,9.421e-05,2]
[346764399,1735271377002,-500.0,9.421e-05,2]
[346764400,1735271377028,-369.17293715,9.421e-05,2]
[346764401,1735271377059,-130.82706285,9.421e-05,2]
[346764402,1735271377086,-500.0,9.421e-05,2]
[346764403,1735271377114,-500.0,9.421e-05,2]
[346764404,1735271377143,-369.38004578,9.421e-05,2]
[346764405,1735271377450,1098.0,0.00013,6]
[346764406,1735271391681,1096.0300191,0.00020519,60]
[346764407,1735271401277,-300.0,9.418e-05,2]
[346764408,1735271401304,-347.28108892,9.419e-05,2]
[346764409,1735271401329,-500.0,9.419e-05,2]
[346764410,1735271401355,-500.0,9.419e-05,2]
[346764411,1735271401380,-61.86149595,9.419e-05,2]
[346764412,1735271401420,-438.13850405,9.419e-05,2]
[346764413,1735271401448,-500.0,9.419e-05,2]
[346764414,1735271401476,-431.29385124,9.419e-05,2]
[346764415,1735271432024,621.03129786,8.49e-05,2]
[346764416,1735271432057,273.21830144,8.49e-05,2]
[346764437,1735271432817,-2176.32,9.418e-05,2]
[346764438,1735271432827,-500.0,9.418e-05,2]
[346764440,1735271432837,-69.79698825,9.419e-05,2]
[346764442,1735271432847,-186.77189001,9.419e-05,2]
[346764443,1735271432859,-313.22810999,9.419e-05,2]
[346764445,1735271432870,-500.0,9.419e-05,2]
[346764447,1735271432879,-500.74860895,9.419e-05,2]
[346764449,1735271432888,-500.42716869,9.419e-05,2]
[346764451,1735271432898,-500.83008208,9.419e-05,2]
[346764453,1735271432908,-501.18827869,9.419e-05,2]
[346764455,1735271432917,-500.0,9.419e-05,2]
[346764457,1735271432927,-500.0,9.419e-05,2]
[346764458,1735271432936,-500.0,9.419e-05,2]
[346764459,1735271432949,-500.0,9.419e-05,2]
[346764460,1735271432958,-500.0,9.419e-05,2]
[346764461,1735271432969,-1063.71,9.419e-05,2]
[346764462,1735271432978,-500.0,9.419e-05,2]
[346764463,1735271432986,-500.0,9.419e-05,2]
[346764464,1735271432995,-500.0,9.42e-05,2]
[346764465,1735271433004,-500.0,9.42e-05,2]
[346764466,1735271433013,-500.0,9.42e-05,2]
[346764467,1735271433023,-500.0,9.42e-05,2]
[346764468,1735271433032,-300.0,9.42e-05,2]
[346764469,1735271433041,-500.0,9.42e-05,2]
[346764470,1735271433051,-500.0,9.42e-05,2]
[346764471,1735271433060,-810.18,9.42e-05,2]
[346764472,1735271433070,-1192.19,9.42e-05,2]
[346764473,1735271433080,-500.0,9.42e-05,2]
[346764474,1735271433175,-500.0,9.42e-05,2]
[346764475,1735271433186,-130.61995422,9.421e-05,2]
[346764476,1735271433197,-485.76837039,9.421e-05,2]
[346764478,1735271433210,-14.23162961,9.421e-05,2]
[346764479,1735271433219,-500.0,9.421e-05,2]
[346764480,1735271433229,-92.61089128,9.421e-05,2]
[346764481,1735271433242,-407.38910872,9.421e-05,2]
[346764483,1735271433251,-500.0,9.421e-05,2]
[346764485,1735271433261,-731.58808045,9.421e-05,2]
[346764664,1735271441278,-53.56162145,9.418e-05,2]
[346764665,1735271442100,-612.40837855,9.418e-05,2]
[346764666,1735271442109,-222.52986616,9.419e-05,2]
[346764742,1735271446692,-23.77109963,9.419e-05,2]
[346765119,1735271492640,19726.78169856,8.422e-05,2]
[346765120,1735271492673,5173.21830144,8.422e-05,2]
[346765123,1735271809402,500.0,0.00023,120]
[346765124,1735271974750,1277.29,0.00023,120]
[346765126,1735272278363,500.0,0.0002053,120]
[346765128,1735272348493,14826.78169856,8.42e-05,2]
[346765129,1735272348531,10073.21830144,8.42e-05,2]
[346765132,1735272449117,-300.0,9.413e-05,2]
[346765133,1735272449140,-300.0,9.413e-05,2]
[346765134,1735272449162,-578.84,9.414e-05,2]
[346765135,1735272449183,-501.45180828,9.414e-05,2]
[346765136,1735272449204,-276.52707945,9.414e-05,2]
[346765137,1735272501617,-300.0,9.413e-05,2]
[346765138,1735272501763,-300.0,9.413e-05,2]
[346765139,1735272501790,-223.47292055,9.414e-05,2]
[346765140,1735272501817,-701.06275644,9.414e-05,2]
[346765141,1735272501865,-1051.98315002,9.414e-05,2]
[346765142,1735272526627,-763.27409354,9.414e-05,2]
[346765143,1735272526654,-679.64062599,9.414e-05,2]
[346765144,1735272526697,-11.96937401,9.414e-05,2]
[346765145,1735272526722,-829.94,9.414e-05,2]
[346765146,1735272526748,-538.66,9.414e-05,2]
[346765147,1735272526774,-195.49667952,9.414e-05,2]
[346765148,1735272551729,-300.0,9.413e-05,2]
[346765149,1735272551756,-300.0,9.413e-05,2]
[346765150,1735272551781,-304.50332048,9.414e-05,2]
[346765151,1735272551807,-500.0,9.414e-05,2]
[346765152,1735272551832,-231.94234851,9.414e-05,2]
[346765153,1735272551966,-322.77765149,9.414e-05,2]
[346765154,1735272551992,-524.82719796,9.414e-05,2]
[346765155,1735272576590,-1686.12667936,9.414e-05,2]
[346765156,1735272576645,-789.54017172,9.414e-05,2]
[346765159,1735272601494,-300.0,9.413e-05,2]
[346765160,1735272601522,-1435.64001638,9.414e-05,2]
[346765161,1735272601567,-868.82865683,9.414e-05,2]
[346765162,1735272627916,169.0,7.916e-05,2]
[346765198,1735272632594,-300.0,9.413e-05,2]
[346765200,1735272632603,-1497.65727775,9.414e-05,2]
[346765202,1735272632613,-500.0,9.414e-05,2]
[346765205,1735272632623,-2627.02,9.414e-05,2]
[346765208,1735272632632,-500.0,9.414e-05,2]
[346765211,1735272632641,-500.0,9.414e-05,2]
[346765214,1735272632650,-8.01936031,9.414e-05,2]
[346765362,1735272639761,-2403.46063969,9.414e-05,2]
[346765363,1735272639773,-663.2326991,9.414e-05,2]
[346765434,1735272640882,-3585.22033157,9.414e-05,2]
[346765436,1735272640892,-500.0,9.414e-05,2]
[346765438,1735272640901,-662.79,9.414e-05,2]
[346765440,1735272640911,-500.0,9.414e-05,2]
[346765442,1735272640920,-500.0,9.414e-05,2]
[346765444,1735272640930,-795.36,9.414e-05,2]
[346765446,1735272640939,-500.0,9.414e-05,2]
[346765448,1735272640948,-66.9163653,9.414e-05,2]
[346765451,1735272640960,-433.0836347,9.414e-05,2]
[346765453,1735272640970,-607.1063653,9.414e-05,2]
[346765484,1735272641264,-427.3136347,9.414e-05,2]
[346765487,1735272641274,-500.0,9.414e-05,2]
[346765489,1735272641283,-206.05045402,9.414e-05,2]